[Event "9th Sharjah Cup Women 2018"]
[Site "Sharjah"]
[Date "2018.12.16"]
[Round "4"]
[White "Kulkarni Bhakti"]
[Black "Mezioud, Amina"]
[Result "1-0"]
[ECO "D43"]
[WhiteElo "2283"]
[BlackElo "2065"]
[Annotator "NA"]
[PlyCount "67"]
[EventDate "2018.12.14"]
[EventType "swiss"]
[EventCountry "UAE"]
[SourceTitle "playchess.com"]
[Source "ChessBase"]
[SourceQuality "1"]
[TimeControl "5400+30"]

1. d4 {[%emt 0:00:00]} d5 {[%emt 0:00:23]} 2. c4 {[%emt 0:00:00]} e6 {[%emt 0:00:18]} 3. Nc3 {[%emt 0:00:22]} Nf6 {[%emt 0:00:15]} 4. Nf3 {[%emt 0:01:06]} c6 {[%emt 0:00:34]} 5. Bg5 {[%emt 0:00:24]} Be7 {[%emt 0:00:09]} 6. e3 {[%emt 0:01:07]} Nbd7 {[%emt 0:00:16]} 7. Qc2 {[%emt 0:02:33]} O-O {[%emt 0:01:11]} 8. Bd3 {[%emt 0:04:07]} dxc4 {[%emt 0:00:24]} 9. Bxc4 {[%emt 0:00:05]} b5 {[%emt 0:01:53]} 10. Bd3 {[%emt 0:04:13]} Bb7 {[%emt 0:01:16]} 11. O-O {[%emt 0:01:27]} a6 {[%emt 0:00:44]} 12. Ne5 {[%emt 0:07:13]} h6 {[%emt 0:02:04]} 13. Nxd7 {[%emt 0:03:47]} Nxd7 {[%emt 0:08:35]} 14. Bxe7 {[%emt 0:03:15]} Qxe7 {[%emt 0:00:02]} 15. Ne4 {[%emt 0:00:57]} Rfd8 {[%emt 0:05:51]} 16. f4 {[%emt 0:01:51]} f5 {[%emt 0:05:34]} 17. Nc5 {[%emt 0:03:19]} Nxc5 {[%emt 0:10:20]} 18. dxc5 {[%emt 0:03:56]} Rd5 {[%emt 0:01:33]} 19. b4 {[%emt 0:01:39]} a5 {[%emt 0:04:02]} 20. e4 {[%emt 0:13:12]} fxe4 {[%emt 0:04:14]} 21. Bxe4 {[%emt 0:00:14]} Rd4 {[%emt 0:00:07]} 22. Rad1 {[%emt 0:08:46]} Rc4 {[%emt 0:08:54]} 23. Qe2 {[%emt 0:08:55]} axb4 {[%emt 0:01:04]} 24. Rd6 {[%emt 0:01:54]} Rxc5 {[%emt 0:20:38]} 25. Rfd1 {[%emt 0:05:53]} Rd5 {[%emt 0:03:10]} 26. Bxd5 {[%emt 0:02:05]} cxd5 {[%emt 0:00:01]} 27. Rxe6 {[%emt 0:01:35]} Qc5+ {[%emt 0:00:50]} 28. Kh1 {[%emt 0:00:38]} Rf8 {[%emt 0:12:06]} 29. Re7 {[%emt 0:06:18]} Qc6 {[%emt 0:00:10]} 30. Qe5 {[%emt 0:00:16]} Rf6 {[%emt 0:01:13]} 31. Qb8+ {[%emt 0:01:59]} Kh7 {[%emt 0:03:48]} 32. Qxb7 {[%emt 0:00:07]} Qc2 {[%emt 0:00:05]} 33. Rxg7+ {[%emt 0:00:26]} Kh8 {[%emt 0:00:01]} 34. Re1 {[%emt 0:00:21]} 1-0

[Event "9th Sharjah Cup Women 2018"]
[Site "Sharjah"]
[Date "2018.12.16"]
[Round "4"]
[White "Zozulia, Anna"]
[Black "Boubendir, Nesrine"]
[Result "1-0"]
[ECO "A05"]
[WhiteElo "2270"]
[BlackElo "1510"]
[Annotator "NA"]
[PlyCount "53"]
[EventDate "2018.12.14"]
[EventType "swiss"]
[EventCountry "UAE"]
[SourceTitle "playchess.com"]
[Source "ChessBase"]
[SourceQuality "1"]
[TimeControl "5400+30"]

1. Nf3 {[%emt 0:00:00]} Nf6 {[%emt 0:00:08]} 2. g3 {[%emt 0:00:00]} g6 {[%emt 0:00:36]} 3. Bg2 {[%emt 0:00:02]} Bg7 {[%emt 0:00:12]} 4. O-O {[%emt 0:00:05]} d5 {[%emt 0:01:46]} 5. d4 {[%emt 0:04:20]} O-O {[%emt 0:02:28]} 6. b3 {[%emt 0:04:30]} Re8 {[%emt 0:04:49]} 7. Bb2 {[%emt 0:00:50]} Nc6 {[%emt 0:02:09]} 8. c4 {[%emt 0:08:03]} e6 {[%emt 0:05:30]} 9. Nc3 {[%emt 0:06:09]} b6 {[%emt 0:08:27]} 10. Rc1 {[%emt 0:01:30]} Bb7 {[%emt 0:00:55]} 11. Re1 {[%emt 0:06:06]} Rc8 {[%emt 0:26:48]} 12. Ne5 {[%emt 0:29:06]} Rb8 {[%emt 0:06:52]} 13. Nb5 {[%emt 0:10:49]} Nxe5 {[%emt 0:10:20]} 14. dxe5 {[%emt 0:00:13]} Ng4 {[%emt 0:03:30]} 15. cxd5 {[%emt 0:00:51]} a6 {[%emt 0:01:27]} 16. Nxc7 {[%emt 0:03:06]} Re7 {[%emt 0:00:14]} 17. dxe6 {[%emt 0:15:52]} Bxg2 {[%emt 0:03:43]} 18. Kxg2 {[%emt 0:00:53]} fxe6 {[%emt 0:00:31]} 19. Qxd8+ {[%emt 0:02:37]} Rxd8 {[%emt 0:00:01]} 20. h3 {[%emt 0:00:59]} Nxe5 {[%emt 0:01:17]} 21. Ba3 {[%emt 0:00:33]} Red7 {[%emt 0:01:54]} 22. Nxe6 {[%emt 0:00:07]} Re8 {[%emt 0:00:42]} 23. Nxg7 {[%emt 0:00:10]} Kxg7 {[%emt 0:00:07]} 24. Red1 {[%emt 0:00:38]} Rf7 {[%emt 0:01:18]} 25. Rc2 {[%emt 0:01:07]} Ra8 {[%emt 0:05:22]} 26. Bb2 {[%emt 0:00:08]} Kg8 {[%emt 0:00:56]} 27. Bxe5 {[%emt 0:00:06]} 1-0

[Event "9th Sharjah Cup Women 2018"]
[Site "Sharjah"]
[Date "2018.12.16"]
[Round "4"]
[White "Kiolbasa, Oliwia"]
[Black "Szczepkowska, Karina"]
[Result "1/2-1/2"]
[ECO "C92"]
[WhiteElo "2244"]
[BlackElo "2408"]
[Annotator "ChessBase"]
[PlyCount "62"]
[EventDate "2018.12.14"]
[EventType "swiss"]
[EventCountry "UAE"]
[SourceTitle "playchess.com"]
[Source "ChessBase"]
[SourceQuality "1"]
[TimeControl "5400+30"]

1. e4 {[%emt 0:00:00]} e5 {[%emt 0:00:00]} 2. Nf3 {[%emt 0:00:00]} Nc6 {[%emt 0:00:30]} 3. Bb5 {[%emt 0:00:00]} a6 {[%emt 0:01:08]} 4. Ba4 {[%emt 0:00:10]} Nf6 {[%emt 0:00:48]} 5. O-O {[%emt 0:00:31]} Be7 {[%emt 0:01:31]} 6. Re1 {[%emt 0:00:26]} b5 {[%emt 0:00:29]} 7. Bb3 {[%emt 0:00:08]} d6 {[%emt 0:00:09]} 8. c3 {[%emt 0:00:09]} O-O {[%emt 0:00:20]} 9. h3 {[%emt 0:02:28]} Bb7 {[%emt 0:01:41]} 10. d4 {[%emt 0:05:16]} Nd7 {[%emt 0:04:37]} 11. Nbd2 {[%emt 0:02:16]} exd4 {[%emt 0:03:46]} 12. cxd4 {[%emt 0:00:18]} Re8 {[%emt 0:03:59]} 13. Nf1 {[%emt 0:02:51]} Na5 {[%emt 0:04:30]} 14. Bc2 {[%emt 0:02:31]} Bf6 {[%emt 0:03:18]} 15. Ng3 {[%emt 0:03:34]} g6 {[%emt 0:03:24]} 16. Bh6 {[%emt 0:06:30]} Nc4 {[%emt 0:07:07]} 17. b3 {[%emt 0:03:27]} Na3 {[%emt 0:01:20]} 18. Bd3 {[%emt 0:01:29]} c5 {[%emt 0:03:31]} 19. Bf4 {[%emt 0:12:06]} Qb6 {[%emt 0:04:01]} 20. e5 {[%emt 0:00:47]} Bg7 {[%emt 0:02:16]} 21. Rc1 {[%emt 0:03:02]} c4 {[%emt 0:03:28]} 22. bxc4 {[%emt 0:01:15]} Nxc4 {[%emt 0:02:18]} 23. Bxc4 {[%emt 0:02:37]} bxc4 {[%emt 0:00:07]} 24. Rxc4 {[%emt 0:00:17]} Bxf3 {[%emt 0:01:04]} 25. Qxf3 {[%emt 0:00:15]} Qa5 {[%emt 0:00:26]} 26. Qc3 {[%emt 0:01:31]} Qxc3 {[%emt 0:00:15]} 27. Rxc3 {[%emt 0:00:02]} dxe5 {[%emt 0:00:16]} 28. dxe5 {[%emt 0:00:08]} Bxe5 {[%emt 0:00:53]} 29. Rce3 {[%emt 0:01:11]} f6 {[%emt 0:00:19]} 30. Bxe5 {[%emt 0:00:11]} Rxe5 {[%emt 0:00:09]} 31. Rxe5 {[%emt 0:00:26]} Nxe5 {[%emt 0:00:11]} 1/2-1/2

[Event "9th Sharjah Cup Women 2018"]
[Site "Sharjah"]
[Date "2018.12.16"]
[Round "4"]
[White "Stetsko, Lanita"]
[Black "Al Ali, Aisha Saif"]
[Result "1-0"]
[ECO "B83"]
[WhiteElo "2194"]
[BlackElo "1401"]
[Annotator "NA"]
[PlyCount "67"]
[EventDate "2018.12.14"]
[EventType "swiss"]
[EventCountry "UAE"]
[SourceTitle "playchess.com"]
[Source "ChessBase"]
[SourceQuality "1"]
[TimeControl "5400+30"]

1. e4 {[%emt 0:00:00]} c5 {[%emt 0:00:00]} 2. Nf3 {[%emt 0:00:00]} e6 {[%emt 0:00:43]} 3. d4 {[%emt 0:00:00]} cxd4 {[%emt 0:00:20]} 4. Nxd4 {[%emt 0:00:00]} Nf6 {[%emt 0:00:20]} 5. Nc3 {[%emt 0:00:05]} d6 {[%emt 0:01:04]} 6. Be2 {[%emt 0:00:23]} Be7 {[%emt 0:00:43]} 7. O-O {[%emt 0:00:56]} a6 {[%emt 0:00:13]} 8. f4 {[%emt 0:02:22]} Qc7 {[%emt 0:02:19]} 9. a4 {[%emt 0:00:22]} O-O {[%emt 0:04:11]} 10. Be3 {[%emt 0:01:23]} Nc6 {[%emt 0:01:31]} 11. Kh1 {[%emt 0:00:31]} Re8 {[%emt 0:02:07]} 12. Bf3 {[%emt 0:04:46]} Rb8 {[%emt 0:09:57]} 13. g4 {[%emt 0:01:38]} Na5 {[%emt 0:08:29]} 14. g5 {[%emt 0:05:45]} Nd7 {[%emt 0:02:13]} 15. Bg2 {[%emt 0:00:47]} Nc4 {[%emt 0:09:53]} 16. Bc1 {[%emt 0:01:05]} Bf8 {[%emt 0:05:32]} 17. Qd3 {[%emt 0:18:26]} b6 {[%emt 0:10:12]} 18. b3 {[%emt 0:03:15]} Na5 {[%emt 0:00:09]} 19. Bb2 {[%emt 0:02:46]} Bb7 {[%emt 0:02:46]} 20. Qh3 {[%emt 0:06:11]} d5 {[%emt 0:17:48]} 21. exd5 {[%emt 0:01:50]} exd5 {[%emt 0:06:22]} 22. Nxd5 {[%emt 0:00:35]} Qd8 {[%emt 0:04:31]} 23. Rad1 {[%emt 0:01:53]} Ne5 {[%emt 0:04:15]} 24. Nf5 {[%emt 0:00:29]} Nd7 {[%emt 0:03:14]} 25. Nh6+ {[%emt 0:01:01]} gxh6 {[%emt 0:00:20]} 26. Nf6+ {[%emt 0:00:03]} Kh8 {[%emt 0:00:18]} 27. Nxe8+ {[%emt 0:01:11]} Kg8 {[%emt 0:00:09]} 28. Nf6+ {[%emt 0:00:05]} Kh8 {[%emt 0:00:05]} 29. Rxd7 {[%emt 0:00:04]} Qc8 {[%emt 0:00:17]} 30. Nd5+ {[%emt 0:01:02]} Kg8 {[%emt 0:00:16]} 31. Qf5 {[%emt 0:00:15]} Bxd5 {[%emt 0:00:31]} 32. Bxd5 {[%emt 0:00:02]} Qe8 {[%emt 0:00:17]} 33. Bxf7+ {[%emt 0:00:05]} Qxf7 {[%emt 0:00:06]} 34. Qxf7# {[%emt 0:00:08]} 1-0

[Event "9th Sharjah Cup Women 2018"]
[Site "Sharjah"]
[Date "2018.12.16"]
[Round "4"]
[White "Babayan, Armine"]
[Black "Bulmaga, Irina"]
[Result "0-1"]
[ECO "B94"]
[WhiteElo "2189"]
[BlackElo "2391"]
[Annotator "NA"]
[PlyCount "78"]
[EventDate "2018.12.14"]
[EventType "swiss"]
[EventCountry "UAE"]
[SourceTitle "playchess.com"]
[Source "ChessBase"]
[SourceQuality "1"]
[TimeControl "5400+30"]

1. e4 {[%emt 0:00:00]} c5 {[%emt 0:00:00]} 2. Nf3 {[%emt 0:00:00]} d6 {[%emt 0:00:00]} 3. d4 {[%emt 0:00:00]} cxd4 {[%emt 0:00:00]} 4. Nxd4 {[%emt 0:00:00]} Nf6 {[%emt 0:00:00]} 5. Nc3 {[%emt 0:00:00]} a6 {[%emt 0:00:06]} 6. Bg5 {[%emt 0:00:46]} Nbd7 {[%emt 0:00:10]} 7. f4 {[%emt 0:01:38]} Qc7 {[%emt 0:00:08]} 8. Qf3 {[%emt 0:00:57]} b5 {[%emt 0:00:27]} 9. Bxb5 {[%emt 0:08:28]} axb5 {[%emt 0:01:48]} 10. Ndxb5 {[%emt 0:00:14]} Qb8 {[%emt 0:09:20]} 11. e5 {[%emt 0:15:01]} Bb7 {[%emt 0:00:31]} 12. Qe2 {[%emt 0:04:17]} dxe5 {[%emt 0:01:17]} 13. O-O-O {[%emt 0:07:56]} e6 {[%emt 0:20:11]} 14. Qc4 {[%emt 0:09:37]} Bc5 {[%emt 0:06:33]} 15. Bxf6 {[%emt 0:07:47]} gxf6 {[%emt 0:00:53]} 16. Kb1 {[%emt 0:07:28]} Qc8 {[%emt 0:11:07]} 17. b4 {[%emt 0:13:07]} Be7 {[%emt 0:02:00]} 18. Nc7+ {[%emt 0:00:18]} Kf8 {[%emt 0:01:28]} 19. Rxd7 {[%emt 0:05:31]} Qxd7 {[%emt 0:00:14]} 20. Nxa8 {[%emt 0:00:03]} Bxa8 {[%emt 0:00:45]} 21. fxe5 {[%emt 0:00:58]} fxe5 {[%emt 0:02:28]} 22. Rd1 {[%emt 0:01:25]} Qc6 {[%emt 0:01:38]} 23. Qb3 {[%emt 0:05:19]} Rg8 {[%emt 0:03:10]} 24. b5 {[%emt 0:01:08]} Qb7 {[%emt 0:01:35]} 25. g3 {[%emt 0:04:39]} Rg4 {[%emt 0:00:23]} 26. a3 {[%emt 0:00:04]} Rd4 {[%emt 0:00:50]} 27. Re1 {[%emt 0:00:36]} e4 {[%emt 0:00:37]} 28. Ne2 {[%emt 0:00:35]} Rd5 {[%emt 0:00:49]} 29. a4 {[%emt 0:00:04]} Qd7 {[%emt 0:00:50]} 30. c3 {[%emt 0:02:18]} Rd2 {[%emt 0:02:51]} 31. Nc1 {[%emt 0:00:49]} Bc5 {[%emt 0:02:06]} 32. a5 {[%emt 0:01:40]} e3 {[%emt 0:00:56]} 33. a6 {[%emt 0:02:27]} Be4+ {[%emt 0:03:27]} 34. Ka1 {[%emt 0:00:13]} Qc7 {[%emt 0:00:31]} 35. Qa4 {[%emt 0:01:17]} Bd4 {[%emt 0:01:11]} 36. Qb4+ {[%emt 0:00:17]} Bc5 {[%emt 0:02:47]} 37. Qa4 {[%emt 0:00:29]} Bd5 {[%emt 0:03:14]} 38. Nb3 {[%emt 0:00:59]} Bxb3 {[%emt 0:00:22]} 39. Qxb3 {[%emt 0:00:01]} e2 {[%emt 0:00:14]} 0-1

[Event "9th Sharjah Cup Women 2018"]
[Site "Sharjah"]
[Date "2018.12.16"]
[Round "4"]
[White "Berke, Ana"]
[Black "Al-Hammadi, Maryam Hussein"]
[Result "1-0"]
[ECO "C00"]
[WhiteElo "2151"]
[BlackElo "1354"]
[Annotator "NA"]
[PlyCount "91"]
[EventDate "2018.12.14"]
[EventType "swiss"]
[EventCountry "UAE"]
[SourceTitle "playchess.com"]
[Source "ChessBase"]
[SourceQuality "1"]
[TimeControl "5400+30"]

1. e4 {[%emt 0:00:00]} e6 {[%emt 0:00:00]} 2. c4 {[%emt 0:00:00]} d5 {[%emt 0:00:00]} 3. exd5 {[%emt 0:00:00]} exd5 {[%emt 0:00:00]} 4. cxd5 {[%emt 0:00:00]} Qxd5 {[%emt 0:00:05]} 5. Nc3 {[%emt 0:00:00]} Qd8 {[%emt 0:00:11]} 6. Nf3 {[%emt 0:00:13]} Nf6 {[%emt 0:00:27]} 7. d4 {[%emt 0:00:08]} Be7 {[%emt 0:01:36]} 8. Bd3 {[%emt 0:00:06]} O-O {[%emt 0:00:55]} 9. O-O {[%emt 0:00:06]} Nc6 {[%emt 0:00:37]} 10. a3 {[%emt 0:01:29]} Be6 {[%emt 0:02:44]} 11. Re1 {[%emt 0:00:54]} Re8 {[%emt 0:03:32]} 12. Bc2 {[%emt 0:01:04]} Bg4 {[%emt 0:02:12]} 13. Be3 {[%emt 0:03:34]} h6 {[%emt 0:09:55]} 14. h3 {[%emt 0:02:44]} Bh5 {[%emt 0:01:23]} 15. g4 {[%emt 0:02:09]} Bg6 {[%emt 0:00:25]} 16. Bxg6 {[%emt 0:01:02]} fxg6 {[%emt 0:00:13]} 17. Qd3 {[%emt 0:01:17]} g5 {[%emt 0:03:25]} 18. d5 {[%emt 0:02:11]} Nb8 {[%emt 0:01:06]} 19. Rad1 {[%emt 0:03:53]} Nbd7 {[%emt 0:05:47]} 20. Bd4 {[%emt 0:05:54]} a6 {[%emt 0:06:33]} 21. Qf5 {[%emt 0:02:10]} Nf8 {[%emt 0:03:58]} 22. Ne5 {[%emt 0:01:10]} Bd6 {[%emt 0:04:23]} 23. Ne4 {[%emt 0:01:49]} Bxe5 {[%emt 0:07:08]} 24. Bxe5 {[%emt 0:00:20]} N8d7 {[%emt 0:03:00]} 25. Bc3 {[%emt 0:03:55]} Nxe4 {[%emt 0:00:36]} 26. Rxe4 {[%emt 0:00:06]} Rxe4 {[%emt 0:00:34]} 27. Qxe4 {[%emt 0:00:05]} Nf6 {[%emt 0:00:52]} 28. Qe6+ {[%emt 0:00:34]} Kh8 {[%emt 0:01:50]} 29. d6 {[%emt 0:01:11]} cxd6 {[%emt 0:00:36]} 30. Rxd6 {[%emt 0:00:38]} Qf8 {[%emt 0:00:25]} 31. Bxf6 {[%emt 0:01:19]} gxf6 {[%emt 0:00:13]} 32. Qxf6+ {[%emt 0:03:49]} Qxf6 {[%emt 0:00:23]} 33. Rxf6 {[%emt 0:00:04]} Kg7 {[%emt 0:00:09]} 34. Rb6 {[%emt 0:00:04]} Rb8 {[%emt 0:00:25]} 35. Kg2 {[%emt 0:00:05]} Kh7 {[%emt 0:00:46]} 36. Kg3 {[%emt 0:00:06]} Kg7 {[%emt 0:00:40]} 37. h4 {[%emt 0:00:07]} Kh7 {[%emt 0:01:33]} 38. b4 {[%emt 0:02:48]} Rd8 {[%emt 0:03:28]} 39. Rxb7+ {[%emt 0:00:47]} Kg8 {[%emt 0:00:49]} 40. hxg5 {[%emt 0:00:07]} hxg5 {[%emt 0:01:11]} 41. Rb6 {[%emt 0:00:43]} Rd3+ {[%emt 0:01:33]} 42. f3 {[%emt 0:00:04]} Rxa3 {[%emt 0:00:16]} 43. Rg6+ {[%emt 0:00:03]} Kf7 {[%emt 0:00:10]} 44. Rxg5 {[%emt 0:00:05]} Rb3 {[%emt 0:00:11]} 45. Ra5 {[%emt 0:00:06]} Rxb4 {[%emt 0:00:32]} 46. Rxa6 {[%emt 0:00:03]} 1-0

[Event "9th Sharjah Cup Women 2018"]
[Site "Sharjah"]
[Date "2018.12.16"]
[Round "4"]
[White "Hallaeva, Bahar"]
[Black "Gu, Xiaobing"]
[Result "0-1"]
[ECO "B22"]
[WhiteElo "2133"]
[BlackElo "2295"]
[Annotator "NA"]
[PlyCount "72"]
[EventDate "2018.12.14"]
[EventType "swiss"]
[EventCountry "UAE"]
[SourceTitle "playchess.com"]
[Source "ChessBase"]
[SourceQuality "1"]
[TimeControl "5400+30"]

1. e4 {[%emt 0:00:00]} c5 {[%emt 0:00:00]} 2. c3 {[%emt 0:00:00]} Nf6 {[%emt 0:00:39]} 3. e5 {[%emt 0:00:00]} Nd5 {[%emt 0:00:06]} 4. Nf3 {[%emt 0:00:00]} Nc6 {[%emt 0:00:19]} 5. Bc4 {[%emt 0:00:00]} Nb6 {[%emt 0:00:35]} 6. Bb3 {[%emt 0:00:00]} c4 {[%emt 0:00:08]} 7. Bc2 {[%emt 0:00:00]} d6 {[%emt 0:00:05]} 8. exd6 {[%emt 0:00:14]} Qxd6 {[%emt 0:00:04]} 9. O-O {[%emt 0:00:24]} Bg4 {[%emt 0:01:32]} 10. Re1 {[%emt 0:00:09]} O-O-O {[%emt 0:08:02]} 11. b3 {[%emt 0:09:06]} Qf6 {[%emt 0:11:09]} 12. Na3 {[%emt 0:07:14]} Nd5 {[%emt 0:11:34]} 13. Qe2 {[%emt 0:04:45]} Nf4 {[%emt 0:06:53]} 14. Qe4 {[%emt 0:13:28]} e6 {[%emt 0:17:58]} 15. b4 {[%emt 0:03:30]} Bxf3 {[%emt 0:14:27]} 16. Qxf3 {[%emt 0:02:36]} Ne5 {[%emt 0:01:23]} 17. Qe4 {[%emt 0:11:46]} Ned3 {[%emt 0:12:01]} 18. Qxc4+ {[%emt 0:02:48]} Kb8 {[%emt 0:00:03]} 19. Bxd3 {[%emt 0:01:13]} Nxd3 {[%emt 0:00:01]} 20. Rf1 {[%emt 0:12:54]} Bxb4 {[%emt 0:00:17]} 21. Nc2 {[%emt 0:02:50]} Bc5 {[%emt 0:01:17]} 22. Ne3 {[%emt 0:00:41]} Rd7 {[%emt 0:01:15]} 23. Rb1 {[%emt 0:01:20]} Bb6 {[%emt 0:01:09]} 24. Ba3 {[%emt 0:02:42]} Rhd8 {[%emt 0:00:12]} 25. Qe4 {[%emt 0:02:37]} Qg6 {[%emt 0:05:23]} 26. Qa4 {[%emt 0:07:41]} e5 {[%emt 0:01:19]} 27. Qb5 {[%emt 0:02:12]} f6 {[%emt 0:00:28]} 28. g3 {[%emt 0:01:21]} Nf4 {[%emt 0:00:35]} 29. Bc5 {[%emt 0:03:20]} Bxc5 {[%emt 0:00:43]} 30. Qxc5 {[%emt 0:00:02]} Rxd2 {[%emt 0:00:51]} 31. Nc4 {[%emt 0:03:09]} Ne2+ {[%emt 0:00:34]} 32. Kh1 {[%emt 0:00:40]} R2d7 {[%emt 0:01:27]} 33. Na5 {[%emt 0:02:29]} Ka8 {[%emt 0:00:36]} 34. f3 {[%emt 0:03:08]} Rd2 {[%emt 0:00:46]} 35. g4 {[%emt 0:01:45]} Ng3+ {[%emt 0:00:36]} 36. Kg1 {[%emt 0:00:06]} Qc2 {[%emt 0:00:12]} 0-1

[Event "9th Sharjah Cup Women 2018"]
[Site "Sharjah"]
[Date "2018.12.16"]
[Round "4"]
[White "Ovezdurdiyeva, Jemal"]
[Black "Khezrian, Nooralzahra"]
[Result "1-0"]
[ECO "A53"]
[WhiteElo "2114"]
[BlackElo "1317"]
[Annotator "NA"]
[PlyCount "69"]
[EventDate "2018.12.14"]
[EventType "swiss"]
[EventCountry "UAE"]
[SourceTitle "playchess.com"]
[Source "ChessBase"]
[SourceQuality "1"]
[TimeControl "5400+30"]

1. d4 {[%emt 0:00:00]} Nf6 {[%emt 0:00:00]} 2. c4 {[%emt 0:00:00]} d6 {[%emt 0:00:00]} 3. Nc3 {[%emt 0:00:04]} g6 {[%emt 0:00:09]} 4. Bg5 {[%emt 0:02:23]} Bg7 {[%emt 0:00:11]} 5. e3 {[%emt 0:00:09]} O-O {[%emt 0:00:09]} 6. Be2 {[%emt 0:00:06]} c5 {[%emt 0:02:05]} 7. Nf3 {[%emt 0:01:26]} h6 {[%emt 0:01:26]} 8. Bh4 {[%emt 0:00:09]} g5 {[%emt 0:00:07]} 9. Bg3 {[%emt 0:00:06]} Nh5 {[%emt 0:01:45]} 10. Qc2 {[%emt 0:09:10]} Nxg3 {[%emt 0:02:45]} 11. hxg3 {[%emt 0:00:10]} f5 {[%emt 0:13:13]} 12. d5 {[%emt 0:08:38]} Nd7 {[%emt 0:05:30]} 13. g4 {[%emt 0:08:42]} fxg4 {[%emt 0:14:32]} 14. Nxg5 {[%emt 0:10:24]} hxg5 {[%emt 0:04:32]} 15. Qh7+ {[%emt 0:01:04]} Kf7 {[%emt 0:00:13]} 16. Bd3 {[%emt 0:05:05]} Rg8 {[%emt 0:12:34]} 17. Ne4 {[%emt 0:07:18]} Ne5 {[%emt 0:07:06]} 18. Nxg5+ {[%emt 0:06:15]} Kf8 {[%emt 0:01:30]} 19. Ke2 {[%emt 0:08:37]} e6 {[%emt 0:07:12]} 20. Qh5 {[%emt 0:08:36]} Qe8 {[%emt 0:04:09]} 21. Qh4 {[%emt 0:11:11]} Qe7 {[%emt 0:04:43]} 22. Qh5 {[%emt 0:06:19]} Qe8 {[%emt 0:00:34]} 23. Qh7 {[%emt 0:01:10]} Qe7 {[%emt 0:02:15]} 24. f4 {[%emt 0:01:51]} Nxd3 {[%emt 0:03:01]} 25. Qxd3 {[%emt 0:01:06]} e5 {[%emt 0:03:44]} 26. Qg6 {[%emt 0:00:17]} Qe8 {[%emt 0:02:51]} 27. Qxd6+ {[%emt 0:00:07]} Qe7 {[%emt 0:00:15]} 28. Qg6 {[%emt 0:00:45]} Qe8 {[%emt 0:00:42]} 29. Qe4 {[%emt 0:01:01]} Qe7 {[%emt 0:01:22]} 30. d6 {[%emt 0:01:03]} Qd8 {[%emt 0:01:18]} 31. Qg6 {[%emt 0:00:20]} Qxg5 {[%emt 0:03:54]} 32. fxg5 {[%emt 0:00:08]} Bd7 {[%emt 0:01:01]} 33. Raf1+ {[%emt 0:00:08]} Bf5 {[%emt 0:00:13]} 34. Rxf5+ {[%emt 0:00:07]} Bf6 {[%emt 0:00:04]} 35. Rxf6# {[%emt 0:00:05]} 1-0

[Event "9th Sharjah Cup Women 2018"]
[Site "Sharjah"]
[Date "2018.12.16"]
[Round "4"]
[White "Asatryan, Sona"]
[Black "Khalil, Hanan"]
[Result "1-0"]
[ECO "B07"]
[WhiteElo "2089"]
[BlackElo "1286"]
[Annotator "NA"]
[PlyCount "55"]
[EventDate "2018.12.14"]
[EventType "swiss"]
[EventCountry "UAE"]
[SourceTitle "playchess.com"]
[Source "ChessBase"]
[SourceQuality "1"]
[TimeControl "5400+30"]

1. e4 {[%emt 0:00:00]} d6 {[%emt 0:00:00]} 2. d4 {[%emt 0:00:00]} Nf6 {[%emt 0:00:00]} 3. Nc3 {[%emt 0:00:00]} Nbd7 {[%emt 0:00:00]} 4. f4 {[%emt 0:00:00]} e5 {[%emt 0:00:03]} 5. Nf3 {[%emt 0:00:01]} exd4 {[%emt 0:00:12]} 6. Qxd4 {[%emt 0:00:20]} c6 {[%emt 0:00:53]} 7. Be3 {[%emt 0:01:03]} Be7 {[%emt 0:05:17]} 8. O-O-O {[%emt 0:05:08]} O-O {[%emt 0:13:54]} 9. h3 {[%emt 0:03:34]} b5 {[%emt 0:01:19]} 10. e5 {[%emt 0:04:16]} dxe5 {[%emt 0:05:28]} 11. fxe5 {[%emt 0:02:17]} Bc5 {[%emt 0:01:16]} 12. Qxc5 {[%emt 0:04:13]} Nxc5 {[%emt 0:00:24]} 13. Rxd8 {[%emt 0:00:05]} Rxd8 {[%emt 0:00:08]} 14. exf6 {[%emt 0:01:14]} Ne6 {[%emt 0:01:47]} 15. fxg7 {[%emt 0:02:04]} Nxg7 {[%emt 0:00:35]} 16. g4 {[%emt 0:02:40]} Re8 {[%emt 0:00:57]} 17. Bf2 {[%emt 0:03:27]} Bb7 {[%emt 0:02:27]} 18. Rg1 {[%emt 0:04:46]} a5 {[%emt 0:01:40]} 19. Bd3 {[%emt 0:01:35]} c5 {[%emt 0:03:24]} 20. Ng5 {[%emt 0:02:18]} h6 {[%emt 0:03:01]} 21. Nge4 {[%emt 0:01:31]} b4 {[%emt 0:05:01]} 22. Nf6+ {[%emt 0:01:28]} Kf8 {[%emt 0:01:45]} 23. Bxc5+ {[%emt 0:04:17]} Re7 {[%emt 0:00:02]} 24. Ncd5 {[%emt 0:00:49]} Bxd5 {[%emt 0:00:50]} 25. Nxd5 {[%emt 0:00:13]} Ne6 {[%emt 0:02:26]} 26. Bxe7+ {[%emt 0:00:12]} Kg8 {[%emt 0:00:56]} 27. g5 {[%emt 0:02:20]} h5 {[%emt 0:00:49]} 28. g6 {[%emt 0:01:20]} 1-0